bitfinex/quotes_ETHUSD_20220218
["timestamp","ask_amount","ask_price","bid_price","bid_amount"]
[1645203575096,5.37517359,2791.4,2791.0,0.89596]
[1645203575289,1.0,2791.3,2791.0,0.417]
[1645203575492,1.0,2791.3,2790.9,0.89596]
[1645203575493,1.0,2791.1,2790.5,0.3]
[1645203575693,1.0,2791.1,2790.6,1.52242288]
[1645203575892,0.65693668,2792.0,2790.7,1.52242288]
[1645203575893,1.0,2791.0,2790.7,1.52242288]
[1645203576091,1.0,2791.0,2790.7,2.68813]
[1645203576691,1.0,2791.0,2790.8,0.89603]
[1645203577093,1.0,2791.0,2790.8,2.19603]
[1645203577493,1.0,2791.0,2790.9,1.52226765]
[1645203577894,1.0,2791.0,2790.8,3.0920561]
[1645203577895,1.00242991,2791.0,2790.8,3.0920561]
[1645203578095,1.00242991,2791.0,2790.8,2.19603]
[1645203578397,1.00242991,2791.0,2790.8,1.3]
[1645203578633,1.00242991,2791.0,2790.7,1.31305]
[1645203578835,1.00242991,2791.0,2790.7,5.0012397]
[1645203579034,1.00242991,2791.0,2790.8,1.52230706]
[1645203579238,1.00242991,2791.0,2790.5,0.11439098]
[1645203579436,4.37517359,2790.7,2789.8,2.17202534]
[1645203579635,4.37517359,2790.7,2789.1,3.52727]
[1645203579636,1.0,2790.6,2789.4,0.01283126]
[1645203579939,1.0,2789.9,2789.8,0.89649]
[1645203581240,1.0,2789.9,2789.8,1.19649]
[1645203581447,4.37517359,2791.1,2789.8,7.8848]
[1645203581637,1.0,2790.9,2790.1,0.89605]
[1645203581839,1.0,2790.9,2790.2,0.417]
[1645203582040,1.0,2790.9,2790.3,0.89604]
[1645203582298,1.0,2790.9,2790.3,1.31304]
[1645203582487,1.0,2790.9,2790.5,0.89613]
[1645203582691,0.00225241,2790.6,2790.5,0.89613]
[1645203583287,1.00225241,2790.6,2790.4,1.79224]
[1645203583488,1.00225241,2790.6,2790.4,1.0]
[1645203583691,1.0,2790.5,2790.3,1.79234]
[1645203583888,1.0,2790.5,2789.4,0.01443854]
[1645203584088,1.0,2790.4,2789.4,0.01443854]
[1645203584489,4.37517359,2790.5,2789.4,0.91088854]
[1645203584490,1.0,2789.5,2789.4,0.91088854]
[1645203584691,1.0,2789.7,2789.4,0.91088854]
[1645203584894,1.0,2789.7,2789.4,3.60016184]
[1645203585090,1.0,2789.8,2789.4,4.49662184]
[1645203585391,0.00229508,2790.3,2789.4,5.6785688]
[1645203585592,1.00229508,2790.3,2789.7,0.89633]
[1645203585792,1.00229508,2790.3,2789.7,2.49633]
[1645203586036,1.00229508,2790.3,2789.8,1.55496]
[1645203586037,0.51289508,2790.3,2789.8,1.55496]
[1645203586241,1.34699767,2792.0,2789.8,1.55496]
[1645203586242,3.5,2791.8,2789.9,1.07427]
[1645203586439,1.0,2790.6,2789.9,0.717]
[1645203586638,1.0,2790.6,2790.1,1.79247]
[1645203586837,1.0,2790.5,2790.1,0.3]
[1645203587037,1.0,2790.4,2790.1,1.19635]
[1645203587236,1.0,2790.4,2789.9,2.09266]
[1645203587437,4.37517359,2790.7,2789.9,2.09266]
[1645203587438,1.0,2790.2,2789.9,2.09266]
[1645203587638,4.37517359,2790.7,2790.2,0.6243297]
[1645203587840,1.97213,2791.1,2790.2,0.6243297]
[1645203588038,4.37517359,2790.5,2790.2,0.6243297]
[1645203588237,1.0,2790.3,2790.2,0.6243297]
[1645203588439,5.37517359,2790.3,2790.2,0.44955459]
[1645203589042,1.0,2790.3,2790.2,0.44955459]
[1645203589644,6.5,2790.2,2789.3,0.00379405]
[1645203589899,1.0,2790.3,2789.3,0.01264682]
[1645203589900,4.37517359,2789.4,2789.3,0.01264682]
[1645203590500,6.02765355,2789.4,2789.3,0.01264682]
[1645203591297,6.02765355,2789.4,2788.6,0.93501649]
[1645203591507,4.37517359,2788.7,2788.6,0.93501649]
[1645203591697,4.37517359,2788.7,2788.6,2.43501649]
[1645203591998,4.37517359,2788.7,2788.3,0.00325525]
[1645203591999,6.27242359,2788.7,2788.3,0.00325525]
[1645203592198,6.27242359,2788.7,2787.6,0.00325525]
[1645203592199,0.89733,2788.5,2787.6,0.00325525]
[1645203592399,4.37517359,2788.4,2787.4,0.00325525]
[1645203592598,1.0,2788.3,2787.4,0.00325525]
[1645203592797,1.0,2788.3,2787.5,0.89704]
[1645203592996,1.0,2788.3,2787.8,1.79382]
[1645203593401,1.0,2788.3,2787.9,0.00325525]
[1645203593652,1.0,2788.3,2787.4,0.35727]
[1645203593653,1.0,2788.3,2787.6,0.00325525]
[1645203594055,1.0,2788.3,2788.2,1.26701034]
[1645203594658,1.0,2788.3,2788.2,0.96701034]
[1645203595055,1.0,2788.4,2788.2,0.96701034]
[1645203595255,1.0,2788.3,2788.2,0.96701034]
[1645203595855,1.0,2788.3,2788.2,1.26701034]
[1645203596158,1.4035,2789.5,2788.2,1.26701034]
[1645203596159,4.37517359,2789.2,2788.3,5.0]
[1645203596356,1.0,2788.7,2788.4,1.0]
[1645203596560,1.0,2788.7,2788.2,1.68401034]
[1645203597995,1.0,2788.7,2788.2,3.47762034]
[1645203598292,5.37517359,2788.6,2788.2,0.96701034]
[1645203598491,4.37517359,2788.3,2788.2,0.96701034]
[1645203598693,1.0,2788.3,2788.2,0.96701034]
[1645203598891,6.03405381,2788.3,2788.2,0.96701034]
[1645203599494,5.98405381,2788.3,2787.5,0.00325525]
[1645203599695,5.98405381,2788.3,2787.3,0.00325525]
[1645203599696,4.37517359,2787.6,2787.3,0.00325525]
[1645203599896,4.37517359,2787.5,2787.1,1.52711892]
[1645203600098,1.0,2787.6,2787.1,1.52711892]
[1645203600295,4.37517359,2787.8,2787.1,2.42115367]
[1645203600296,1.0,2787.5,2787.1,2.42115367]
[1645203600497,1.0,2787.5,2787.2,1.52386367]
[1645203600696,1.0,2787.6,2787.2,1.52386367]
[1645203600897,1.0,2787.5,2787.2,2.42521153]
[1645203601142,0.1792,2788.7,2787.3,1.52386367]
[1645203601346,4.37517359,2788.7,2787.7,0.89693]
[1645203601538,1.0,2787.8,2787.7,0.89693]
[1645203601743,4.37517359,2788.7,2787.8,5.5]
[1645203601938,0.49941027,2788.7,2788.0,0.8967814]
[1645203602141,0.49941027,2788.7,2788.1,2.24072361]
[1645203602441,1.027e-05,2788.4,2788.3,1.19676]
[1645203602644,1.027e-05,2788.8,2788.3,3.43748361]
[1645203602842,1.027e-05,2788.8,2788.3,4.43748361]
[1645203603038,1.027e-05,2789.0,2788.4,2.14855002]
[1645203603238,4.37517359,2789.4,2788.6,0.89665]
[1645203603440,4.37517359,2789.4,2788.7,1.94072361]
[1645203603640,4.37517359,2789.4,2788.8,0.3]
[1645203603940,4.37517359,2789.3,2788.8,0.3]
[1645203604139,4.37517359,2789.3,2789.0,0.79943453]
[1645203604341,4.37517359,2789.3,2788.2,0.00100293]
[1645203604342,4.37517359,2789.3,2788.2,0.41800293]
[1645203604540,4.37517359,2789.3,2788.5,0.89682]
[1645203604788,0.53616351,2789.2,2789.0,0.00081095]
[1645203604990,4.37517359,2789.3,2789.0,0.00081095]
[1645203605190,4.37517359,2789.3,2789.0,0.41781095]
[1645203605391,4.37517359,2789.3,2789.0,0.71781095]
[1645203605590,4.37517359,2789.3,2789.2,0.79943453]
[1645203605892,4.37517359,2789.3,2789.2,1.39943453]
[1645203606290,4.37517359,2789.5,2789.2,1.39943453]
[1645203606490,4.37517359,2789.5,2789.3,0.417]
[1645203606691,4.37517359,2789.9,2789.3,0.717]
[1645203606894,4.37517359,2789.9,2789.3,1.017]
[1645203607092,0.00225562,2790.4,2789.8,0.79943453]
[1645203607093,0.51102183,2790.1,2789.8,0.79943453]
[1645203607292,4.32517359,2789.9,2789.3,2.51001]
[1645203607490,4.32517359,2789.9,2789.3,4.60296]
[1645203608193,4.32517359,2789.9,2789.5,0.0008464]
[1645203608391,4.32517359,2789.9,2789.6,0.417]
[1645203608675,4.32517359,2792.0,2790.3,1.62431987]
[1645203608864,0.18723043,2792.6,2790.7,0.89599]
[1645203608865,4.32517359,2791.6,2790.7,0.89599]
[1645203609061,1.34699767,2792.5,2791.2,0.61357748]
[1645203609062,5.0,2792.2,2791.2,0.61357748]
[1645203609260,4.32517359,2791.3,2791.2,1.22715496]
[1645203609468,4.32517359,2791.3,2790.3,1.62431987]
[1645203609661,5.0,2791.9,2790.3,1.62431987]
[1645203609662,4.32517359,2790.5,2790.3,1.62431987]
[1645203610062,0.56534638,2790.4,2790.3,1.62431987]
[1645203610263,0.56534638,2790.4,2790.3,0.7695563]
[1645203611763,0.56534638,2790.4,2790.3,1.56899083]
[1645203612429,3.0,2790.3,2789.5,0.00120977]
[1645203612627,4.32517359,2789.6,2789.5,0.00120977]
[1645203612830,4.96904039,2789.6,2789.5,0.00120977]
[1645203613026,0.6438668,2789.6,2789.5,0.00120977]
[1645203613228,4.91904039,2789.6,2789.5,0.00403257]
[1645203614428,4.91904039,2789.6,2789.4,0.00100817]
[1645203615430,4.91904039,2789.6,2789.4,0.00201636]
[1645203615631,4.91904039,2789.6,2789.4,0.00100819]
[1645203615831,4.27517359,2789.6,2789.4,0.00100819]
[1645203616043,0.1792,2790.4,2789.4,0.00100819]
[1645203616044,4.27517359,2789.8,2789.4,0.00100819]
[1645203616245,4.27517359,2790.1,2789.5,0.417]
[1645203616444,4.27517359,2790.1,2789.6,0.1792]
[1645203616643,4.27517359,2790.1,2789.7,0.717]
[1645203616844,4.27517359,2790.1,2789.7,0.417]
[1645203617044,4.27517359,2790.1,2789.7,2.50975]
[1645203617250,0.00240902,2790.5,2789.7,4.3024998]
[1645203617445,0.00240902,2790.5,2789.7,0.667]
[1645203617446,4.27517359,2789.8,2789.7,0.667]
[1645203617646,4.27517359,2789.8,2789.5,1.79279]
[1645203617848,0.00240902,2790.5,2789.5,1.79279]
[1645203617849,4.27517359,2790.1,2789.7,0.00081796]
[1645203618046,4.27517359,2790.1,2789.8,0.417]
[1645203618245,4.27517359,2790.1,2789.8,3.10589]
[1645203618545,4.27517359,2790.1,2789.8,4.00225]
[1645203619245,4.27517359,2790.1,2789.9,1.1963]
[1645203619450,0.0022443,2790.5,2789.9,1.6133]
[1645203619649,0.0022443,2790.5,2790.0,5.50192589]
[1645203619899,2.3695,2792.0,2790.0,5.50192589]
[1645203619900,5.0,2792.4,2790.3,1.79208]
[1645203620095,0.4940444,2790.9,2790.5,1.79194]
[1645203620294,0.4940444,2790.9,2790.6,0.5961]
[1645203620695,0.4940444,2790.9,2790.6,2.68804]
[1645203620895,0.4940444,2790.9,2790.6,4.4801]
[1645203621096,0.4940444,2790.9,2790.7,0.3]
[1645203621296,0.4940444,2791.2,2790.8,0.417]
[1645203621494,0.4940444,2791.2,2790.8,2.20914]
[1645203621495,0.00201356,2790.9,2790.8,2.20914]
[1645203621694,0.00201356,2790.9,2790.8,2.50914]
[1645203621896,0.00201356,2790.9,2790.8,4.301242]
[1645203622097,0.4940444,2791.2,2790.8,6.093302]
[1645203622294,0.63005374,2792.4,2791.0,0.89599]
[1645203622497,0.1791,2792.3,2791.1,0.417]
[1645203622695,0.1291,2792.3,2791.2,0.89598]
[1645203622894,0.63005374,2792.4,2791.3,0.417]
[1645203623095,0.63005374,2792.4,2790.9,0.89612]
[1645203623096,0.4940444,2791.4,2790.9,0.89612]
[1645203623297,0.4940444,2791.0,2790.5,0.55519997]
[1645203623542,0.4940444,2791.0,2790.5,0.417]
[1645203623746,0.4940444,2791.0,2790.7,0.417]
[1645203624143,1.07526,2792.3,2790.7,0.417]
[1645203624144,0.4940444,2791.8,2790.7,4.8132]
[1645203624343,0.4940444,2791.8,2790.8,1.7014083]
[1645203624643,0.4940444,2791.8,2790.9,2.20862]
[1645203624843,0.4940444,2791.8,2791.0,0.1791]
[1645203625146,0.4940444,2791.8,2791.3,1.7917]
[1645203625147,0.00232286,2791.4,2791.3,1.7917]
[1645203625346,0.00232286,2791.4,2791.3,2.5087]
[1645203625542,3.061,2792.9,2791.4,6.5]
[1645203625744,5.3696,2793.1,2791.7,0.89575]
[1645203625943,0.4940444,2792.2,2791.8,0.417]
[1645203626242,2.9172,2793.4,2791.8,0.417]
[1645203626243,0.4940444,2792.4,2791.9,0.6]
[1645203626444,0.4940444,2792.4,2792.0,0.417]
[1645203626844,0.4940444,2793.0,2792.1,0.89564]
[1645203627044,0.4940444,2793.1,2792.2,0.72151949]
[1645203627298,0.4940444,2793.1,2792.3,1.25266]
[1645203627493,0.4940444,2793.1,2792.4,2.3866]
[1645203627694,0.4940444,2793.1,2792.4,3.28201]
[1645203627892,0.4940444,2793.1,2792.5,3.09074]
[1645203628094,0.4940444,2793.1,2792.6,0.8959]
[1645203628694,0.60808129,2793.5,2792.6,0.8959]
[1645203628695,0.00225451,2792.9,2792.6,0.8959]
[1645203628895,0.00225451,2792.9,2792.6,0.417]
[1645203628896,0.4940444,2792.7,2792.6,0.417]
[1645203629597,0.4940444,2792.7,2792.6,0.717]
[1645203629998,0.1789,2793.9,2792.7,3.0]
[1645203630203,3.2139,2794.3,2792.8,4.0959]
[1645203630498,1.9062,2794.7,2792.8,4.0959]
[1645203630499,2.0851,2794.7,2792.9,0.89545]
[1645203630698,1.9062,2794.7,2793.0,0.5959]
[1645203630898,0.1789,2794.8,2793.0,0.8959]
[1645203631143,0.1789,2794.8,2793.1,0.3]
[1645203631341,0.1789,2795.1,2793.4,0.8952413]
[1645203631540,0.1789,2795.1,2793.5,1.49114]
[1645203631740,11.1786,2795.3,2793.6,3.5]
[1645203631741,0.1789,2795.2,2793.6,3.5]
[1645203631940,0.1789,2795.2,2793.7,0.417]
[1645203632143,0.60874868,2794.8,2793.8,0.417]
[1645203632444,0.00226448,2794.4,2793.8,0.417]
[1645203633040,0.00226448,2794.4,2793.8,1.31219]
[1645203633440,0.00226449,2794.2,2793.8,1.31219]
[1645203633840,0.00226449,2794.2,2793.8,1.61219]
[1645203634241,0.00226449,2794.2,2793.8,0.417]
[1645203634648,0.0022645,2794.1,2793.8,0.417]
[1645203635501,0.0022645,2794.1,2793.8,1.31217]
[1645203635698,0.0022645,2794.1,2793.8,1.61217]
[1645203635899,0.00216458,2794.1,2793.8,1.91217]
[1645203636103,0.00216458,2794.1,2793.9,1.96899]
[1645203636399,0.00216458,2794.1,2794.0,0.417]
[1645203636599,0.00216458,2794.1,2794.0,0.717]
[1645203636799,0.64542115,2795.1,2794.0,0.717]
[1645203636800,0.32371535,2795.1,2794.0,0.717]
[1645203637198,5.0,2795.4,2794.0,0.717]
[1645203637199,0.00216458,2794.1,2794.0,0.717]
[1645203637399,0.00216458,2794.1,2794.0,1.61206]
[1645203638201,0.69933165,2795.3,2794.0,1.61206]
[1645203638645,0.89518,2795.5,2794.0,0.717]
[1645203639342,6.07404,2795.6,2794.0,1.61212]
[1645203639545,0.00242081,2794.9,2794.0,0.417]
[1645203640145,0.00242081,2794.9,2793.6,2.09036]
[1645203640549,0.65969459,2794.8,2793.6,2.09036]
[1645203640952,0.00242084,2794.6,2793.6,2.09036]
[1645203641145,0.00242084,2794.6,2793.8,0.89521]
[1645203641347,0.00242084,2794.6,2793.8,1.49521]
[1645203641547,0.00242084,2794.6,2793.8,4.517]
[1645203641746,0.00242084,2794.6,2793.9,0.1789]
[1645203641948,0.00242087,2794.2,2794.0,1.66911]
[1645203642147,0.00967862,2795.6,2794.2,6.00635243]
[1645203642414,0.00967862,2795.6,2794.3,7.77965]
[1645203642613,0.00967862,2795.6,2794.3,8.37965]
[1645203642914,0.00967862,2795.6,2794.5,4.47313]
[1645203643117,0.00967862,2795.6,2794.8,0.8946977]
[1645203643316,0.1787,2796.4,2795.0,0.89471]
[1645203643613,13.8678,2796.7,2795.1,0.417]
[1645203643614,2.5807,2796.6,2795.1,0.417]
[1645203643814,0.1787,2796.6,2795.2,0.417]
[1645203644015,2.4403,2796.9,2795.3,0.1787]
[1645203644214,2.4403,2796.9,2796.1,0.8944]
[1645203644415,2.8253,2797.2,2796.2,0.417]
[1645203644416,0.00797125,2796.3,2796.2,0.417]
[1645203644817,0.07832835,2796.0,2795.7,0.3]
[1645203645016,0.07832835,2796.0,2795.5,0.417]
[1645203645318,0.07832835,2796.0,2795.8,2.08886]
[1645203645520,0.07832835,2796.0,2795.9,1.31138]
[1645203647147,0.07832835,2796.0,2795.9,0.89438]
[1645203647444,0.07832835,2796.0,2795.4,1.78924]
[1645203649043,0.07832835,2796.0,2795.5,0.89459]
[1645203649244,0.00231203,2795.8,2795.5,0.89459]
[1645203649444,0.1787,2797.0,2795.5,1.19459]
[1645203649645,0.1787,2797.0,2795.4,2.08924]
[1645203649646,0.1787,2797.0,2795.8,1.78908]
[1645203649892,0.1787,2797.0,2795.8,2.08908]
[1645203650290,0.1787,2797.0,2796.0,0.89456]
[1645203650492,0.69636957,2797.1,2796.0,1.19456]
[1645203650994,5.0,2797.2,2796.0,1.19456]
[1645203651397,5.24153536,2797.6,2796.2,0.89448]
[1645203651398,5.1787,2797.5,2796.2,0.89448]
[1645203651692,0.1787,2797.5,2796.2,1.19448]
[1645203651891,1.8893,2797.6,2796.6,1.7884533]
[1645203651892,2.068,2797.6,2796.6,1.7884533]
[1645203652091,0.77708626,2797.6,2796.6,1.7884533]
[1645203652292,0.1787,2797.6,2796.6,1.7884533]
[1645203652493,4.8857,2798.2,2796.9,0.89427]
[1645203652494,0.1787,2798.1,2796.9,0.89427]
[1645203652691,0.00241055,2797.2,2796.9,0.89427]
[1645203652892,0.00241055,2797.2,2796.9,1.19427]
[1645203653095,0.00241055,2797.2,2796.9,0.3]
[1645203653295,0.00241055,2797.2,2796.8,2.08843]
[1645203654041,0.00241056,2797.2,2796.8,2.98266]
[1645203654441,0.00241056,2797.2,2796.8,1.78843]
[1645203654645,0.00241056,2797.2,2796.4,0.1787]
[1645203654646,0.00241056,2797.2,2796.3,0.1787]
[1645203654843,0.00241056,2797.2,2795.7,0.00088342]
[1645203655045,0.1787,2797.1,2795.7,0.00088342]
[1645203655243,0.18111545,2797.1,2795.7,0.00178314]
[1645203655443,0.00241545,2797.1,2795.7,0.00089972]
[1645203655644,0.61047323,2796.6,2795.8,0.89459]
[1645203655842,0.00241545,2797.1,2795.8,1.19459]
[1645203656045,0.00241545,2797.1,2795.8,0.6]
[1645203656247,0.00241545,2797.1,2795.8,0.3]
[1645203656445,0.00241551,2796.5,2795.9,0.8945013]
[1645203656645,0.00241551,2796.5,2795.9,2.6833913]
[1645203656845,0.00241551,2796.5,2796.0,0.89455]
[1645203657145,0.00241551,2796.5,2795.9,3.57787]
[1645203657395,0.00241551,2796.5,2795.7,0.00089972]
[1645203657592,0.0022523,2796.4,2795.7,0.00089972]
[1645203658699,0.51339033,2795.8,2795.7,0.00179783]
[1645203658893,0.51339033,2795.8,2795.7,0.00089811]
[1645203659293,1.0735781,2796.3,2795.7,0.00089811]
[1645203659495,2.836,2796.3,2795.7,0.00089811]
[1645203660094,0.0022515,2796.4,2795.6,0.00089815]
[1645203660293,0.63149203,2796.0,2795.6,0.00089815]
[1645203661152,0.63149203,2796.0,2795.7,0.00089813]
[1645203662447,5.0,2795.8,2794.7,0.1787]
[1645203662650,5.0,2795.8,2794.2,0.18505243]
[1645203662651,20.81,2795.7,2794.2,0.18505243]
[1645203662849,5.0,2795.8,2794.2,0.00635243]
[1645203663053,5.0,2795.7,2794.2,0.00635243]
[1645203663351,0.63476593,2795.0,2794.3,0.89511]
[1645203663550,0.89514,2795.6,2794.3,0.89511]
[1645203664151,0.89514,2795.6,2794.3,1.19511]
[1645203664353,0.8951441,2795.7,2794.3,2.09018]
[1645203664553,5.0,2795.2,2794.2,0.00635243]
[1645203664998,5.0,2795.0,2794.2,0.00635243]
[1645203665197,20.9889,2795.1,2794.2,0.00635243]
[1645203665198,0.1789,2795.1,2794.2,0.00635243]
[1645203665401,0.8952162,2795.3,2794.2,0.00635243]
[1645203665594,0.60464974,2794.5,2794.2,0.00635243]
[1645203666794,5.0,2795.0,2794.2,0.00635243]
[1645203667296,5.0,2795.0,2794.2,0.00741907]
[1645203667499,5.1789,2795.2,2794.2,0.00741907]
[1645203667696,0.63848043,2794.8,2794.2,0.00741907]
[1645203667897,1.53388043,2794.8,2794.2,0.00741907]
[1645203668097,0.63848043,2794.8,2794.2,0.00741907]
[1645203668547,0.63848043,2794.8,2794.6,0.0010665]
[1645203669952,0.0008,2794.5,2793.3,1.79063]
[1645203670150,0.0008,2794.5,2793.1,5.4803782]
[1645203670151,5.0,2794.4,2793.1,0.0042682]
[1645203670350,0.1789,2794.3,2793.1,0.0042682]
[1645203670551,0.53905337,2793.4,2793.1,0.0042682]
[1645203670949,0.53905337,2793.4,2793.1,1.79085]
[1645203671149,7.8207,2794.2,2793.1,1.79085]
[1645203671349,0.1789,2794.3,2793.2,0.3]
[1645203671551,0.1789,2794.4,2793.2,0.3]
[1645203672154,0.1789,2794.4,2793.2,1.1953414]
[1645203672596,0.1789,2794.4,2793.3,0.89539]
[1645203672798,0.0008,2794.5,2793.5,0.89534]
[1645203672993,0.0008,2794.5,2793.6,0.8459]
[1645203673206,0.0008,2794.5,2793.7,1.7901194]
[1645203673593,0.52583306,2794.4,2794.0,0.89518]
[1645203673795,0.52583306,2794.4,2794.0,1.79031]
[1645203673993,0.52583306,2794.4,2794.0,0.89513]
[1645203674193,0.52583306,2794.4,2794.1,0.3]
[1645203674395,0.52583306,2794.4,2793.8,2.09025]
[1645203674592,0.52583306,2794.4,2794.1,0.00106403]
[1645203675294,0.52583306,2794.4,2794.1,0.89629403]
[1645203675794,0.52583306,2794.4,2793.1,0.00425762]
[1645203675795,3.0,2794.2,2793.1,0.00425762]
[1645203676052,0.1789,2794.1,2793.1,0.00425762]
[1645203676249,0.1789,2794.1,2793.3,0.8955]
[1645203676952,0.59588166,2794.0,2793.1,0.3]
[1645203677151,0.59588166,2794.0,2792.9,1.791]
[1645203677152,11.5,2793.8,2792.9,1.791]
[1645203677354,22.7804728,2793.7,2792.4,0.89574]
[1645203677551,22.7804728,2793.7,2792.5,3.5]
[1645203677552,0.1789,2793.7,2792.5,3.5]
[1645203677751,1.01288166,2794.0,2792.5,3.5]
[1645203677752,0.1789,2793.9,2792.5,3.5]
[1645203677952,0.1789,2793.9,2792.4,3.5]
[1645203678154,0.68925629,2793.1,2792.5,0.89552]
[1645203678352,0.68925629,2793.1,2792.6,0.89559]
[1645203678753,0.1789,2794.1,2792.8,0.89554]
[1645203678953,0.1789,2794.1,2792.8,1.19554]
[1645203679458,0.1789,2794.1,2792.8,6.48641]
[1645203679654,0.61383031,2793.6,2793.3,0.89545]
[1645203679894,0.61383031,2793.6,2793.1,1.7909]
[1645203679895,0.61383031,2793.6,2793.1,0.3]
[1645203680098,0.61383031,2793.6,2792.8,0.3]
[1645203680304,0.61383031,2793.6,2792.7,2.09213922]
[1645203680493,0.61383031,2793.6,2793.3,0.00105899]
[1645203681496,1.50957121,2793.6,2793.3,0.00105899]
[1645203681896,0.61383031,2793.6,2793.3,0.00105899]
[1645203684142,0.61383031,2793.6,2793.3,0.00086142]
[1645203685146,0.61383031,2793.6,2793.3,0.00172284]
[1645203685347,0.61383031,2793.6,2793.3,0.00086142]
[1645203686346,0.61383031,2793.6,2793.3,0.00172284]
[1645203686546,0.61383031,2793.6,2793.3,0.00086142]
[1645203686949,0.61383031,2793.6,2793.3,6.142e-05]
[1645203687406,0.79273031,2793.6,2793.3,6.142e-05]
[1645203687699,0.79273031,2793.6,2793.3,0.00089508]
[1645203687901,0.61383031,2793.6,2793.3,0.00089508]
[1645203689000,0.61383031,2793.6,2793.2,0.89548]
[1645203689199,0.1789,2794.1,2793.2,0.89548]
[1645203689399,0.1789,2794.4,2793.2,1.19548]
[1645203689600,0.0008,2794.5,2793.4,1.79066]
[1645203690005,0.0008,2794.5,2793.4,0.3]
[1645203690202,0.61869591,2793.6,2793.4,0.3]
[1645203690399,0.61869591,2793.6,2793.1,0.417]
[1645203690799,0.61869591,2793.6,2793.2,1.79076]
[1645203691046,0.61869591,2793.6,2793.4,0.89542]
[1645203691345,0.61869591,2793.6,2793.2,1.79181703]
[1645203691543,0.61869591,2793.6,2793.2,2.09181703]
[1645203692342,0.61869591,2793.6,2793.2,0.30105703]
[1645203692545,0.61869591,2793.6,2792.8,0.00422876]
[1645203692546,0.61869591,2793.6,2793.3,0.00085977]
[1645203692943,0.82593296,2793.6,2793.3,0.00085977]
[1645203693144,0.61869591,2793.6,2793.3,0.00085977]
[1645203693342,1.51451591,2793.6,2793.3,0.00085977]
[1645203693742,1.51451591,2793.6,2793.3,0.00171953]
[1645203693942,1.51451591,2793.6,2793.3,0.00085976]
[1645203694442,21.7058224,2793.5,2793.3,0.00085976]
[1645203694902,0.89583,2793.4,2793.3,0.00085976]
[1645203695501,0.89583,2793.4,2793.3,5.976e-05]
[1645203695502,26.70583,2793.4,2793.3,5.976e-05]
[1645203695801,0.00074024,2793.2,2792.9,0.00343954]
[1645203696101,0.89606,2793.1,2792.9,0.00343954]
[1645203696303,0.89606,2793.1,2792.8,0.00343966]
[1645203696702,0.68349853,2793.0,2792.8,0.00343966]
[1645203696900,2.47554853,2793.0,2792.8,0.00343966]
[1645203697300,2.47554853,2793.0,2792.4,0.00107225]
[1645203697502,20.81,2792.8,2792.4,0.00107225]
[1645203697705,0.8960383,2792.6,2792.4,0.00107225]
[1645203698302,0.54904875,2792.5,2792.4,0.00107225]
[1645203698759,0.54904875,2792.5,2792.0,0.00107239]
[1645203699459,0.54904875,2792.5,2792.0,0.30107239]
[1645203699859,0.54904875,2792.5,2792.1,0.00089348]
[1645203700363,0.54904875,2792.5,2792.1,0.30089348]
[1645203700560,0.1789,2793.1,2792.1,0.30089348]
[1645203700762,2.06574024,2793.2,2792.1,0.00089348]
[1645203700966,2.06574024,2793.2,2792.2,0.00095682]
[1645203701265,0.17964024,2793.2,2792.4,0.89577]
[1645203701462,0.17964024,2793.2,2792.5,0.3]
[1645203701660,0.69319349,2792.6,2792.5,0.3]
[1645203702798,0.69319349,2792.6,2792.2,0.00382717]
[1645203703297,0.12689803,2792.5,2792.4,0.00095674]
[1645203703897,0.33471022,2792.5,2792.4,0.00015674]
[1645203704699,0.33471022,2792.5,2792.3,0.00087905]
[1645203704700,1.7923089,2792.4,2792.3,0.00087905]
[1645203704898,1.7923089,2792.4,2791.1,1.05507472]
[1645203705201,0.33471022,2792.5,2791.1,1.05507472]
[1645203705202,0.12689803,2792.5,2791.1,1.17617472]
[1645203705602,0.8961123,2792.2,2791.1,1.17617472]
[1645203705799,0.53592899,2791.4,2791.1,1.17617472]
[1645203706444,0.53592899,2791.4,2790.9,0.1789]
[1645203706645,0.53592899,2791.4,2790.7,1.0]
[1645203706646,0.53592899,2791.4,2790.7,0.1791]
[1645203706845,0.53592899,2791.4,2790.7,1.79239]
[1645203707145,0.53592899,2791.4,2790.8,0.89617]
[1645203707545,0.53592899,2791.4,2790.9,0.89619]
[1645203707943,0.53592899,2791.4,2790.7,1.79239]
[1645203708148,0.53592899,2791.4,2791.0,0.00100976]
[1645203709350,0.53592899,2791.4,2791.1,0.00100972]
[1645203710603,0.53592899,2791.4,2791.1,0.0010097]
[1645203711409,0.53592899,2791.4,2791.1,9.7e-06]
[1645203711902,0.53592899,2791.4,2791.1,0.0010097]
[1645203711903,23.13900899,2791.4,2791.1,0.0010097]
[1645203712104,0.01245033,2791.3,2791.1,0.0010097]
[1645203712304,5.01245033,2791.3,2790.7,9.692e-05]
[1645203712507,5.01245033,2791.3,2789.3,0.1791]
[1645203712508,20.81,2791.1,2789.3,0.1791]
[1645203712708,20.81,2790.9,2789.4,1.52307402]
[1645203712903,20.81,2790.7,2789.5,1.52307402]
[1645203713105,0.54025329,2789.9,2789.6,1.52302958]
[1645203713308,1.7932282,2790.9,2790.1,0.8787097]
[1645203713309,0.64187716,2790.2,2790.1,0.8787097]
[1645203714154,0.64187716,2790.2,2790.1,1.1787097]
[1645203714959,1.07574,2790.9,2790.1,1.1787097]
[1645203715159,0.1792,2790.9,2790.1,2.0750197]
[1645203715361,0.00217924,2790.8,2790.1,1.1773097]
[1645203715961,0.70936205,2790.4,2790.1,1.1773097]
[1645203716561,0.70936205,2790.4,2790.3,0.00095699]
[1645203717060,1.60601045,2790.4,2790.3,0.00095699]
[1645203717896,1.60601045,2790.4,2790.2,0.00095703]
[1645203718896,1.60601045,2790.4,2790.2,0.00095704]
[1645203720098,1.60601045,2790.4,2790.2,0.00191408]
[1645203720299,1.60601045,2790.4,2790.2,0.00095704]
[1645203720799,1.60601045,2790.4,2789.7,0.01818654]
[1645203720800,5.10601045,2790.4,2789.7,0.01818654]
[1645203721058,1.7937054,2790.1,2789.7,0.01818654]
[1645203721247,3.6792,2790.0,2789.7,0.01818654]